[Event "Titled Tuesday Blitz June 27 Late 2023"]
[White "Ismagilov, Damir"]
[Black "morozcoma"]
[WhiteFideId "34199982"]
[WhiteElo "2526"]
[BlackElo "2337"]
[Result "1-0"]
[Round "2"]
[TimeControl "180+2"]
[Date "2023.06.27"]
[WhiteClock "0:00:28"]
[BlackClock "0:00:00"]
[Board "136"]

1. d4 {[%clk 0:02:58]}  d5 {[%clk 0:02:55]} 2. Bf4 {[%clk 0:02:55]}  c5 {[%clk 0:02:53]} 3. e3 {[%clk 0:02:55]}  Nc6 {[%clk 0:02:53]} 4. c3 {[%clk 0:02:55]}  Qb6 {[%clk 0:02:52]} 5. Qb3 {[%clk 0:02:55]}  c4 {[%clk 0:02:48]} 6. Qc2 {[%clk 0:02:55]}  e5 {[%clk 0:02:44]} 7. dxe5 {[%clk 0:02:54]}  Bf5 {[%clk 0:02:44]} 8. Qc1 {[%clk 0:02:55]}  g5 {[%clk 0:02:43]} 9. Bxg5 {[%clk 0:02:54]}  Nxe5 {[%clk 0:02:42]} 10. Nd2 {[%clk 0:02:55]}  Bg7 {[%clk 0:02:37]} 11. Ngf3 {[%clk 0:02:53]}  Nd3+ {[%clk 0:02:36]} 12. Bxd3 {[%clk 0:02:51]}  Bxd3 {[%clk 0:02:34]} 13. Nd4 {[%clk 0:02:44]}  Qg6 {[%clk 0:02:23]} 14. N2f3 {[%clk 0:02:34]}  h6 {[%clk 0:02:18]} 15. Bf4 {[%clk 0:02:33]}  Bxd4 {[%clk 0:02:09]} 16. exd4 {[%clk 0:02:26]}  Qxg2 {[%clk 0:02:04]} 17. Qe3+ {[%clk 0:02:25]}  Be4 {[%clk 0:01:59]} 18. Rg1 {[%clk 0:01:27]}  Qxf3 {[%clk 0:01:53]} 19. Qxf3 {[%clk 0:01:15]}  Bxf3 {[%clk 0:01:37]} 20. Kd2 {[%clk 0:01:16]}  O-O-O {[%clk 0:01:32]} 21. Rae1 {[%clk 0:01:15]}  Be4 {[%clk 0:01:31]} 22. f3 {[%clk 0:01:11]}  Bg6 {[%clk 0:01:28]} 23. h4 {[%clk 0:01:04]}  h5 {[%clk 0:01:27]} 24. Rg5 {[%clk 0:01:03]}  Nh6 {[%clk 0:01:16]} 25. Re7 {[%clk 0:00:53]}  Rd7 {[%clk 0:00:41]} 26. Rxd7 {[%clk 0:00:29]}  Kxd7 {[%clk 0:00:40]} 27. Rxd5+ {[%clk 0:00:29]}  Ke6 {[%clk 0:00:00]} 28. Re5+ {[%clk 0:00:28]} 1-0


[Site "https://www.chess.com"]

[Event "Titled Tuesday Blitz June 27 Late 2023"]
[White "Yanev, Tihomir"]
[Black "Fajdetic, Hrvoje"]
[WhiteFideId "2910110"]
[BlackFideId "14501945"]
[WhiteElo "2526"]
[BlackElo "2322"]
[Result "1-0"]
[Round "2"]
[TimeControl "180+2"]
[Date "2023.06.27"]
[WhiteClock "0:01:16"]
[BlackClock "0:00:02"]
[Board "138"]

1. e3 {[%clk 0:03:00]}  d5 {[%clk 0:02:57]} 2. b3 {[%clk 0:03:01]}  e6 {[%clk 0:02:53]} 3. Bb2 {[%clk 0:03:02]}  f5 {[%clk 0:02:52]} 4. f4 {[%clk 0:02:59]}  Nf6 {[%clk 0:02:51]} 5. Nf3 {[%clk 0:02:58]}  Bd6 {[%clk 0:02:50]} 6. Be2 {[%clk 0:02:56]}  O-O {[%clk 0:02:50]} 7. O-O {[%clk 0:02:57]}  Nbd7 {[%clk 0:02:47]} 8. Qe1 {[%clk 0:02:51]}  Qe8 {[%clk 0:02:39]} 9. Qg3 {[%clk 0:02:47]}  Qg6 {[%clk 0:02:24]} 10. Qxg6 {[%clk 0:02:46]}  hxg6 {[%clk 0:02:25]} 11. h3 {[%clk 0:02:30]}  Re8 {[%clk 0:02:24]} 12. Ne5 {[%clk 0:02:24]}  Kh7 {[%clk 0:01:48]} 13. d3 {[%clk 0:02:22]}  a5 {[%clk 0:01:34]} 14. a4 {[%clk 0:02:18]}  Nh5 {[%clk 0:01:10]} 15. Kf2 {[%clk 0:02:04]}  Nxe5 {[%clk 0:00:38]} 16. fxe5 {[%clk 0:02:03]}  Be7 {[%clk 0:00:38]} 17. g3 {[%clk 0:01:58]}  Kh6 {[%clk 0:00:16]} 18. Nd2 {[%clk 0:01:58]}  g5 {[%clk 0:00:15]} 19. Kg2 {[%clk 0:01:57]}  g4 {[%clk 0:00:13]} 20. hxg4 {[%clk 0:01:55]}  fxg4 {[%clk 0:00:14]} 21. Bxg4 {[%clk 0:01:55]}  Bg5 {[%clk 0:00:12]} 22. Rf7 {[%clk 0:01:39]}  Bxe3 {[%clk 0:00:10]} 23. Nf3 {[%clk 0:01:32]}  g6 {[%clk 0:00:09]} 24. Rxc7 {[%clk 0:01:28]}  d4 {[%clk 0:00:09]} 25. Bxd4 {[%clk 0:01:24]}  Bxd4 {[%clk 0:00:09]} 26. Nxd4 {[%clk 0:01:25]}  b6 {[%clk 0:00:07]} 27. Bf3 {[%clk 0:01:24]}  Rb8 {[%clk 0:00:07]} 28. Ne2 {[%clk 0:01:19]}  g5 {[%clk 0:00:02]} 29. Rh1 {[%clk 0:01:16]} 1-0


[Site "https://www.chess.com"]

[Event "Titled Tuesday Blitz June 27 Late 2023"]
[White "MAHanif"]
[Black "Shapiro, Viktor"]
[BlackFideId "4175700"]
[WhiteElo "2321"]
[BlackElo "2524"]
[Result "0-1"]
[Round "2"]
[TimeControl "180+2"]
[Date "2023.06.27"]
[WhiteClock "0:00:03"]
[BlackClock "0:00:13"]
[Board "139"]

1. Nf3 {[%clk 0:02:57]}  Nf6 {[%clk 0:03:00]} 2. g3 {[%clk 0:02:57]}  c5 {[%clk 0:02:59]} 3. Bg2 {[%clk 0:02:58]}  Nc6 {[%clk 0:03:00]} 4. O-O {[%clk 0:02:58]}  g6 {[%clk 0:02:57]} 5. d3 {[%clk 0:02:59]}  Bg7 {[%clk 0:02:57]} 6. Nbd2 {[%clk 0:02:59]}  O-O {[%clk 0:02:57]} 7. Re1 {[%clk 0:02:58]}  d6 {[%clk 0:02:57]} 8. c3 {[%clk 0:02:56]}  Qc7 {[%clk 0:02:50]} 9. Qc2 {[%clk 0:02:57]}  b5 {[%clk 0:02:48]} 10. e4 {[%clk 0:02:53]}  Rb8 {[%clk 0:02:46]} 11. a3 {[%clk 0:02:51]}  a5 {[%clk 0:02:46]} 12. d4 {[%clk 0:02:45]}  e5 {[%clk 0:02:40]} 13. dxe5 {[%clk 0:02:39]}  dxe5 {[%clk 0:02:38]} 14. Nf1 {[%clk 0:02:37]}  Bb7 {[%clk 0:02:19]} 15. Ne3 {[%clk 0:02:35]}  Rbd8 {[%clk 0:02:20]} 16. Nd2 {[%clk 0:02:29]}  Ne7 {[%clk 0:02:19]} 17. c4 {[%clk 0:02:24]}  b4 {[%clk 0:02:12]} 18. Nd5 {[%clk 0:02:23]}  Nexd5 {[%clk 0:02:10]} 19. cxd5 {[%clk 0:02:22]}  Rc8 {[%clk 0:02:03]} 20. Nc4 {[%clk 0:02:19]}  Nd7 {[%clk 0:01:57]} 21. a4 {[%clk 0:02:07]}  Ba6 {[%clk 0:01:55]} 22. Bf1 {[%clk 0:02:05]}  h6 {[%clk 0:01:38]} 23. b3 {[%clk 0:02:03]}  Bxc4 {[%clk 0:01:30]} 24. Bxc4 {[%clk 0:02:00]}  Nb6 {[%clk 0:01:30]} 25. Be3 {[%clk 0:01:57]}  Rfd8 {[%clk 0:01:30]} 26. Rac1 {[%clk 0:01:56]}  Bf8 {[%clk 0:01:30]} 27. Qd2 {[%clk 0:01:53]}  Kh7 {[%clk 0:01:29]} 28. Rc2 {[%clk 0:01:52]}  f5 {[%clk 0:01:22]} 29. Qd3 {[%clk 0:01:47]}  Qf7 {[%clk 0:01:20]} 30. Rec1 {[%clk 0:01:40]}  f4 {[%clk 0:01:19]} 31. Bd2 {[%clk 0:01:39]}  Bd6 {[%clk 0:01:17]} 32. Qf3 {[%clk 0:01:34]}  g5 {[%clk 0:01:13]} 33. g4 {[%clk 0:01:32]}  Qg6 {[%clk 0:01:10]} 34. Qg2 {[%clk 0:01:27]}  Rf8 {[%clk 0:01:05]} 35. f3 {[%clk 0:01:27]}  h5 {[%clk 0:01:05]} 36. h3 {[%clk 0:01:27]}  Kg7 {[%clk 0:01:04]} 37. Be1 {[%clk 0:01:24]}  hxg4 {[%clk 0:01:04]} 38. hxg4 {[%clk 0:01:23]}  Rh8 {[%clk 0:01:04]} 39. Bf2 {[%clk 0:01:23]}  Rh6 {[%clk 0:01:00]} 40. Ba6 {[%clk 0:01:11]}  Ra8 {[%clk 0:00:59]} 41. Bb7 {[%clk 0:01:05]}  Ra7 {[%clk 0:00:58]} 42. Bc6 {[%clk 0:01:05]}  Rc7 {[%clk 0:00:50]} 43. Bxc5 {[%clk 0:01:04]}  Bxc5+ {[%clk 0:00:50]} 44. Rxc5 {[%clk 0:01:04]}  Qd6 {[%clk 0:00:49]} 45. Rxa5 {[%clk 0:00:58]}  Nd7 {[%clk 0:00:43]} 46. Rb5 {[%clk 0:00:39]}  Nf6 {[%clk 0:00:39]} 47. a5 {[%clk 0:00:33]}  Kg6 {[%clk 0:00:24]} 48. Qf2 {[%clk 0:00:23]}  Rch7 {[%clk 0:00:23]} 49. Qg2 {[%clk 0:00:20]}  Qd8 {[%clk 0:00:17]} 50. Rb6 {[%clk 0:00:18]}  Rh4 {[%clk 0:00:16]} 51. Bb5 {[%clk 0:00:15]}  Rc7 {[%clk 0:00:15]} 52. Rxc7 {[%clk 0:00:14]}  Qxc7 {[%clk 0:00:16]} 53. Bc6 {[%clk 0:00:13]}  Qa7 {[%clk 0:00:15]} 54. Qd2 {[%clk 0:00:09]}  Qxa5 {[%clk 0:00:15]} 55. Qxb4 {[%clk 0:00:06]}  Qa1+ {[%clk 0:00:14]} 56. Kf2 {[%clk 0:00:03]}  Rh2# {[%clk 0:00:13]} 0-1


[Site "https://www.chess.com"]

[Event "Titled Tuesday Blitz June 27 Late 2023"]
[White "Bruedigam, Martin"]
[Black "Balkum, Alexander"]
[WhiteFideId "24608033"]
[BlackFideId "2005069"]
[WhiteElo "2522"]
[BlackElo "2320"]
[Result "1-0"]
[Round "2"]
[TimeControl "180+2"]
[Date "2023.06.27"]
[WhiteClock "0:01:03"]
[BlackClock "0:00:10"]
[Board "141"]

1. Nf3 {[%clk 0:03:00]}  Nf6 {[%clk 0:02:59]} 2. e3 {[%clk 0:02:59]}  g6 {[%clk 0:02:59]} 3. b3 {[%clk 0:02:58]}  Bg7 {[%clk 0:02:59]} 4. Bb2 {[%clk 0:02:59]}  O-O {[%clk 0:02:59]} 5. c4 {[%clk 0:02:59]}  d6 {[%clk 0:03:00]} 6. d4 {[%clk 0:02:58]}  Re8 {[%clk 0:02:56]} 7. Be2 {[%clk 0:02:57]}  Nc6 {[%clk 0:02:53]} 8. O-O {[%clk 0:02:57]}  Nd7 {[%clk 0:02:50]} 9. a3 {[%clk 0:02:56]}  e5 {[%clk 0:02:37]} 10. b4 {[%clk 0:02:55]}  h5 {[%clk 0:02:13]} 11. b5 {[%clk 0:02:52]}  Ne7 {[%clk 0:02:13]} 12. Nc3 {[%clk 0:02:47]}  Nf5 {[%clk 0:02:11]} 13. Nd5 {[%clk 0:02:23]}  c6 {[%clk 0:02:08]} 14. bxc6 {[%clk 0:02:21]}  bxc6 {[%clk 0:02:09]} 15. Nb4 {[%clk 0:02:18]}  Qc7 {[%clk 0:02:06]} 16. Qc2 {[%clk 0:02:09]}  a5 {[%clk 0:02:01]} 17. Na2 {[%clk 0:02:08]}  Rb8 {[%clk 0:01:54]} 18. Rac1 {[%clk 0:02:05]}  exd4 {[%clk 0:01:15]} 19. exd4 {[%clk 0:01:58]}  c5 {[%clk 0:01:15]} 20. Rfd1 {[%clk 0:01:51]}  Bb7 {[%clk 0:01:04]} 21. d5 {[%clk 0:01:29]}  Bxb2 {[%clk 0:00:59]} 22. Qxb2 {[%clk 0:01:27]}  Bxd5 {[%clk 0:00:59]} 23. Qd2 {[%clk 0:01:25]}  Bxf3 {[%clk 0:00:54]} 24. Bxf3 {[%clk 0:01:26]}  Ne5 {[%clk 0:00:53]} 25. Bd5 {[%clk 0:01:26]}  Nd4 {[%clk 0:00:52]} 26. Rb1 {[%clk 0:01:23]}  Ng4 {[%clk 0:00:46]} 27. Nc3 {[%clk 0:01:13]}  Qe7 {[%clk 0:00:31]} 28. h3 {[%clk 0:01:12]}  Nf6 {[%clk 0:00:29]} 29. Rxb8 {[%clk 0:01:07]}  Rxb8 {[%clk 0:00:28]} 30. Re1 {[%clk 0:01:07]}  Qd7 {[%clk 0:00:17]} 31. Qg5 {[%clk 0:01:07]}  Qf5 {[%clk 0:00:16]} 32. Qg3 {[%clk 0:01:08]}  Nxd5 {[%clk 0:00:14]} 33. Nxd5 {[%clk 0:01:04]}  Rb2 {[%clk 0:00:10]} 34. Ne7+ {[%clk 0:01:03]} 1-0


[Site "https://www.chess.com"]

[Event "Titled Tuesday Blitz June 27 Late 2023"]
[White "Gerbelli Neto, Eduardo"]
[Black "Perske, Thore"]
[WhiteFideId "2103281"]
[BlackFideId "12902195"]
[WhiteElo "2319"]
[BlackElo "2520"]
[Result "0-1"]
[Round "2"]
[TimeControl "180+2"]
[Date "2023.06.27"]
[WhiteClock "0:00:23"]
[BlackClock "0:00:37"]
[Board "142"]

1. e4 {[%clk 0:03:00]}  e6 {[%clk 0:03:00]} 2. d4 {[%clk 0:03:00]}  d5 {[%clk 0:03:00]} 3. Nc3 {[%clk 0:03:00]}  Bb4 {[%clk 0:03:00]} 4. Ne2 {[%clk 0:02:59]}  dxe4 {[%clk 0:03:00]} 5. a3 {[%clk 0:02:59]}  Bxc3+ {[%clk 0:03:00]} 6. Nxc3 {[%clk 0:03:00]}  Nc6 {[%clk 0:03:01]} 7. Bb5 {[%clk 0:02:55]}  Ne7 {[%clk 0:03:01]} 8. Bg5 {[%clk 0:02:49]}  f6 {[%clk 0:03:01]} 9. Be3 {[%clk 0:02:49]}  f5 {[%clk 0:02:59]} 10. f3 {[%clk 0:02:48]}  Nd5 {[%clk 0:02:43]} 11. Nxd5 {[%clk 0:02:27]}  exd5 {[%clk 0:02:38]} 12. fxe4 {[%clk 0:02:27]}  Qh4+ {[%clk 0:02:24]} 13. Kd2 {[%clk 0:02:11]}  fxe4 {[%clk 0:02:01]} 14. g3 {[%clk 0:02:00]}  Qh3 {[%clk 0:01:59]} 15. Bf1 {[%clk 0:01:52]}  Qg4 {[%clk 0:01:36]} 16. Be2 {[%clk 0:01:51]}  Qe6 {[%clk 0:01:33]} 17. Rf1 {[%clk 0:01:47]}  Bd7 {[%clk 0:01:33]} 18. Rf4 {[%clk 0:01:18]}  O-O-O {[%clk 0:01:18]} 19. Bg4 {[%clk 0:01:09]}  Qe7 {[%clk 0:01:18]} 20. Qe2 {[%clk 0:01:05]}  Rhf8 {[%clk 0:01:10]} 21. Raf1 {[%clk 0:01:04]}  Rxf4 {[%clk 0:01:10]} 22. Rxf4 {[%clk 0:01:04]}  Bxg4 {[%clk 0:00:59]} 23. Qxg4+ {[%clk 0:01:03]}  Qd7 {[%clk 0:00:59]} 24. Qh5 {[%clk 0:00:57]}  g6 {[%clk 0:00:56]} 25. Qg5 {[%clk 0:00:46]}  b6 {[%clk 0:00:50]} 26. Rh4 {[%clk 0:00:33]}  Rf8 {[%clk 0:00:45]} 27. c3 {[%clk 0:00:31]}  Na5 {[%clk 0:00:42]} 28. Bf4 {[%clk 0:00:30]}  Kb7 {[%clk 0:00:37]} 29. Qe5 {[%clk 0:00:23]}  Nc4+ {[%clk 0:00:37]} 0-1


[Site "https://www.chess.com"]

[Event "Titled Tuesday Blitz June 27 Late 2023"]
[White "Keleberda, Tymur"]
[Black "Spichkin, Alexander"]
[WhiteFideId "14174294"]
[BlackFideId "4144074"]
[WhiteElo "2507"]
[BlackElo "2312"]
[Result "1-0"]
[Round "2"]
[TimeControl "180+2"]
[Date "2023.06.27"]
[WhiteClock "0:01:27"]
[BlackClock "0:01:20"]
[Board "146"]

1. e4 {[%clk 0:02:58]}  e5 {[%clk 0:03:00]} 2. Nf3 {[%clk 0:02:59]}  d5 {[%clk 0:03:00]} 3. Nxe5 {[%clk 0:02:58]}  Bd6 {[%clk 0:03:00]} 4. d4 {[%clk 0:02:57]}  dxe4 {[%clk 0:03:00]} 5. Bc4 {[%clk 0:02:57]}  Bxe5 {[%clk 0:03:00]} 6. dxe5 {[%clk 0:02:56]}  Qxd1+ {[%clk 0:03:00]} 7. Kxd1 {[%clk 0:02:57]}  Nc6 {[%clk 0:03:00]} 8. Bf4 {[%clk 0:02:56]}  Bg4+ {[%clk 0:03:00]} 9. Kc1 {[%clk 0:02:55]}  Nge7 {[%clk 0:02:58]} 10. h3 {[%clk 0:02:51]}  Ng6 {[%clk 0:02:53]} 11. Bg3 {[%clk 0:02:47]}  Be6 {[%clk 0:02:51]} 12. Bxe6 {[%clk 0:02:47]}  fxe6 {[%clk 0:02:51]} 13. Nc3 {[%clk 0:02:48]}  Nd4 {[%clk 0:02:47]} 14. Re1 {[%clk 0:02:47]}  O-O-O {[%clk 0:02:41]} 15. Rxe4 {[%clk 0:02:44]}  c5 {[%clk 0:02:35]} 16. b3 {[%clk 0:02:44]}  b5 {[%clk 0:02:32]} 17. a3 {[%clk 0:02:44]}  a5 {[%clk 0:02:31]} 18. b4 {[%clk 0:02:39]}  axb4 {[%clk 0:02:28]} 19. axb4 {[%clk 0:02:40]}  cxb4 {[%clk 0:02:29]} 20. Ne2 {[%clk 0:02:40]}  Nc6 {[%clk 0:02:26]} 21. h4 {[%clk 0:02:36]}  Kb7 {[%clk 0:02:23]} 22. h5 {[%clk 0:02:34]}  Nge7 {[%clk 0:02:24]} 23. Nf4 {[%clk 0:02:34]}  Nd4 {[%clk 0:02:15]} 24. f3 {[%clk 0:02:23]}  Nef5 {[%clk 0:02:13]} 25. Bf2 {[%clk 0:02:23]}  Rhf8 {[%clk 0:02:12]} 26. g4 {[%clk 0:02:22]}  Nxf3 {[%clk 0:02:00]} 27. Ra7+ {[%clk 0:02:21]}  Kc6 {[%clk 0:01:59]} 28. gxf5 {[%clk 0:02:20]}  Rxf5 {[%clk 0:01:56]} 29. Ra6+ {[%clk 0:02:20]}  Kb7 {[%clk 0:01:55]} 30. Ra7+ {[%clk 0:02:19]}  Kc6 {[%clk 0:01:54]} 31. Rxg7 {[%clk 0:02:18]}  Nxe5 {[%clk 0:01:52]} 32. Rxh7 {[%clk 0:02:10]}  Nc4 {[%clk 0:01:48]} 33. Rxe6+ {[%clk 0:02:03]}  Rd6 {[%clk 0:01:46]} 34. Rxd6+ {[%clk 0:02:02]}  Kxd6 {[%clk 0:01:45]} 35. Rh6+ {[%clk 0:02:01]}  Kd7 {[%clk 0:01:41]} 36. Nd3 {[%clk 0:02:01]}  b3 {[%clk 0:01:37]} 37. cxb3 {[%clk 0:02:01]}  Na5 {[%clk 0:01:36]} 38. Kc2 {[%clk 0:01:58]}  Nc6 {[%clk 0:01:36]} 39. Nc5+ {[%clk 0:01:57]}  Ke8 {[%clk 0:01:35]} 40. Rxc6 {[%clk 0:01:56]}  Rxf2+ {[%clk 0:01:35]} 41. Kc3 {[%clk 0:01:57]}  Rh2 {[%clk 0:01:34]} 42. h6 {[%clk 0:01:57]}  Rh4 {[%clk 0:01:32]} 43. Rd6 {[%clk 0:01:55]}  b4+ {[%clk 0:01:32]} 44. Kd3 {[%clk 0:01:55]}  Ke7 {[%clk 0:01:31]} 45. Ra6 {[%clk 0:01:54]}  Kf7 {[%clk 0:01:30]} 46. Ne4 {[%clk 0:01:54]}  Rh3+ {[%clk 0:01:27]} 47. Kc4 {[%clk 0:01:54]}  Rh4 {[%clk 0:01:28]} 48. Kd5 {[%clk 0:01:54]}  Rh5+ {[%clk 0:01:26]} 49. Kd4 {[%clk 0:01:54]}  Rh4 {[%clk 0:01:26]} 50. h7 {[%clk 0:01:53]}  Kg7 {[%clk 0:01:26]} 51. Ra7+ {[%clk 0:01:53]}  Kh8 {[%clk 0:01:26]} 52. Ra8+ {[%clk 0:01:40]}  Kxh7 {[%clk 0:01:24]} 53. Rb8 {[%clk 0:01:40]}  Kg7 {[%clk 0:01:22]} 54. Rxb4 {[%clk 0:01:40]}  Kf7 {[%clk 0:01:23]} 55. Rb6 {[%clk 0:01:41]}  Ke7 {[%clk 0:01:23]} 56. b4 {[%clk 0:01:40]}  Kd7 {[%clk 0:01:24]} 57. b5 {[%clk 0:01:39]}  Kc7 {[%clk 0:01:24]} 58. Rg6 {[%clk 0:01:39]}  Kb7 {[%clk 0:01:24]} 59. Rf6 {[%clk 0:01:36]}  Ka7 {[%clk 0:01:24]} 60. Re6 {[%clk 0:01:36]}  Kb7 {[%clk 0:01:25]} 61. Kc4 {[%clk 0:01:35]}  Ka7 {[%clk 0:01:23]} 62. Kb4 {[%clk 0:01:36]}  Kb7 {[%clk 0:01:23]} 63. Ka5 {[%clk 0:01:36]}  Ka7 {[%clk 0:01:23]} 64. Re7+ {[%clk 0:01:36]}  Ka8 {[%clk 0:01:23]} 65. Ka6 {[%clk 0:01:35]}  Rh6+ {[%clk 0:01:22]} 66. b6 {[%clk 0:01:35]}  Rh8 {[%clk 0:01:23]} 67. Nc5 {[%clk 0:01:34]}  Kb8 {[%clk 0:01:23]} 68. Rb7+ {[%clk 0:01:28]}  Ka8 {[%clk 0:01:21]} 69. Ra7+ {[%clk 0:01:28]}  Kb8 {[%clk 0:01:22]} 70. Nd7+ {[%clk 0:01:28]}  Kc8 {[%clk 0:01:22]} 71. b7+ {[%clk 0:01:28]}  Kc7 {[%clk 0:01:23]} 72. b8=Q+ {[%clk 0:01:28]}  Kc6 {[%clk 0:01:21]} 73. Qb7+ {[%clk 0:01:26]}  Kd6 {[%clk 0:01:20]} 74. Qb6+ {[%clk 0:01:27]}  Ke7 {[%clk 0:01:20]} 75. Ne5+ {[%clk 0:01:27]}  Kf8 {[%clk 0:01:20]} 76. Qb8# {[%clk 0:01:27]} 1-0


[Site "https://www.chess.com"]

[Event "Titled Tuesday Blitz June 27 Late 2023"]
[White "Ozen, Batuhan"]
[Black "Kirillov, Dmitry"]
[WhiteFideId "6345123"]
[BlackFideId "34180572"]
[WhiteElo "2299"]
[BlackElo "2506"]
[Result "1-0"]
[Round "2"]
[TimeControl "180+2"]
[Date "2023.06.27"]
[WhiteClock "0:00:12"]
[BlackClock "0:00:00"]
[Board "148"]

1. d4 {[%clk 0:02:57]}  Nf6 {[%clk 0:02:59]} 2. Nf3 {[%clk 0:02:44]}  e6 {[%clk 0:03:00]} 3. e3 {[%clk 0:02:44]}  b6 {[%clk 0:03:00]} 4. b3 {[%clk 0:02:44]}  Bb7 {[%clk 0:03:01]} 5. Bb2 {[%clk 0:02:44]}  c5 {[%clk 0:03:02]} 6. Bd3 {[%clk 0:02:43]}  d5 {[%clk 0:03:01]} 7. Nbd2 {[%clk 0:02:43]}  Bd6 {[%clk 0:03:00]} 8. Ne5 {[%clk 0:02:25]}  O-O {[%clk 0:03:00]} 9. f4 {[%clk 0:02:15]}  Nc6 {[%clk 0:03:01]} 10. a3 {[%clk 0:02:06]}  Ne7 {[%clk 0:03:00]} 11. O-O {[%clk 0:02:05]}  Ne4 {[%clk 0:02:58]} 12. Qe2 {[%clk 0:02:01]}  f5 {[%clk 0:02:58]} 13. Ndf3 {[%clk 0:02:01]}  cxd4 {[%clk 0:02:57]} 14. Bxd4 {[%clk 0:02:00]}  Nc6 {[%clk 0:02:56]} 15. Nxc6 {[%clk 0:01:59]}  Bxc6 {[%clk 0:02:57]} 16. Bxe4 {[%clk 0:01:58]}  fxe4 {[%clk 0:02:54]} 17. Ne5 {[%clk 0:01:59]}  Bb7 {[%clk 0:02:53]} 18. Rfc1 {[%clk 0:01:55]}  a5 {[%clk 0:02:53]} 19. Qg4 {[%clk 0:01:52]}  Qe7 {[%clk 0:02:49]} 20. c4 {[%clk 0:01:51]}  Rac8 {[%clk 0:02:44]} 21. Bxb6 {[%clk 0:01:43]}  Bxa3 {[%clk 0:02:29]} 22. Rd1 {[%clk 0:01:16]}  Bb2 {[%clk 0:02:05]} 23. Rxa5 {[%clk 0:01:13]}  Bxe5 {[%clk 0:02:02]} 24. fxe5 {[%clk 0:01:13]}  dxc4 {[%clk 0:02:00]} 25. bxc4 {[%clk 0:01:13]}  Rxc4 {[%clk 0:01:55]} 26. Ra2 {[%clk 0:01:12]}  Bd5 {[%clk 0:01:52]} 27. Ra7 {[%clk 0:01:07]}  h5 {[%clk 0:01:34]} 28. Qg6 {[%clk 0:00:58]}  Bb7 {[%clk 0:01:33]} 29. Qxh5 {[%clk 0:00:51]}  Rc2 {[%clk 0:01:27]} 30. Qg4 {[%clk 0:00:51]}  Rcf2 {[%clk 0:00:12]} 31. h3 {[%clk 0:00:44]}  Kh7 {[%clk 0:00:07]} 32. Qh5+ {[%clk 0:00:41]}  Kg8 {[%clk 0:00:07]} 33. Qg6 {[%clk 0:00:36]}  R2f5 {[%clk 0:00:02]} 34. Qg4 {[%clk 0:00:15]}  R5f7 {[%clk 0:00:02]} 35. Bd4 {[%clk 0:00:14]}  Rf5 {[%clk 0:00:02]} 36. Rb1 {[%clk 0:00:14]}  Rg5 {[%clk 0:00:01]} 37. Raxb7 {[%clk 0:00:14]}  Qxb7 {[%clk 0:00:01]} 38. Rxb7 {[%clk 0:00:13]}  Rxg4 {[%clk 0:00:02]} 39. hxg4 {[%clk 0:00:14]}  Rc8 {[%clk 0:00:02]} 40. Re7 {[%clk 0:00:14]}  Rc6 {[%clk 0:00:02]} 41. g5 {[%clk 0:00:14]}  Kf8 {[%clk 0:00:00]} 42. Ra7 {[%clk 0:00:12]} 1-0


[Site "https://www.chess.com"]

[Event "Titled Tuesday Blitz June 27 Late 2023"]
[White "Gertler, David"]
[Black "Jovic, Stanoje"]
[WhiteFideId "2017377"]
[BlackFideId "905020"]
[WhiteElo "2297"]
[BlackElo "2505"]
[Result "0-1"]
[Round "2"]
[TimeControl "180+2"]
[Date "2023.06.27"]
[WhiteClock "0:00:01"]
[BlackClock "0:00:25"]
[Board "150"]

1. e4 {[%clk 0:03:00]}  c6 {[%clk 0:02:59]} 2. c4 {[%clk 0:03:01]}  d5 {[%clk 0:02:59]} 3. cxd5 {[%clk 0:03:01]}  cxd5 {[%clk 0:02:59]} 4. exd5 {[%clk 0:03:02]}  Nf6 {[%clk 0:02:59]} 5. Bb5+ {[%clk 0:03:03]}  Nbd7 {[%clk 0:02:57]} 6. Nc3 {[%clk 0:03:02]}  g6 {[%clk 0:02:57]} 7. d4 {[%clk 0:03:02]}  Bg7 {[%clk 0:02:57]} 8. d6 {[%clk 0:03:02]}  O-O {[%clk 0:02:57]} 9. dxe7 {[%clk 0:03:02]}  Qxe7+ {[%clk 0:02:57]} 10. Nge2 {[%clk 0:03:02]}  a6 {[%clk 0:02:56]} 11. Bxd7 {[%clk 0:02:59]}  Bxd7 {[%clk 0:02:49]} 12. O-O {[%clk 0:03:00]}  Rac8 {[%clk 0:02:43]} 13. Qb3 {[%clk 0:02:55]}  b5 {[%clk 0:02:42]} 14. Bg5 {[%clk 0:02:52]}  Qd6 {[%clk 0:02:39]} 15. Rfd1 {[%clk 0:02:38]}  Rfe8 {[%clk 0:02:32]} 16. Bf4 {[%clk 0:02:35]}  Qb6 {[%clk 0:02:24]} 17. d5 {[%clk 0:01:53]}  b4 {[%clk 0:02:18]} 18. Ng3 {[%clk 0:01:47]}  a5 {[%clk 0:02:11]} 19. h3 {[%clk 0:01:10]}  h5 {[%clk 0:02:10]} 20. Rac1 {[%clk 0:01:01]}  h4 {[%clk 0:02:09]} 21. Nf1 {[%clk 0:01:01]}  Nh5 {[%clk 0:01:59]} 22. Be3 {[%clk 0:01:00]}  Qd6 {[%clk 0:01:53]} 23. Ne2 {[%clk 0:01:00]}  a4 {[%clk 0:01:49]} 24. Qd3 {[%clk 0:00:52]}  Bxb2 {[%clk 0:01:46]} 25. Rxc8 {[%clk 0:00:50]}  Rxc8 {[%clk 0:01:45]} 26. Bd4 {[%clk 0:00:51]}  Bf5 {[%clk 0:01:37]} 27. Qb5 {[%clk 0:00:40]}  Bd7 {[%clk 0:01:26]} 28. Qd3 {[%clk 0:00:36]}  a3 {[%clk 0:01:26]} 29. Bxb2 {[%clk 0:00:30]}  axb2 {[%clk 0:01:26]} 30. Qb3 {[%clk 0:00:31]}  Qf6 {[%clk 0:01:21]} 31. Ne3 {[%clk 0:00:14]}  Ra8 {[%clk 0:00:58]} 32. Ng4 {[%clk 0:00:08]}  Bxg4 {[%clk 0:00:46]} 33. hxg4 {[%clk 0:00:07]}  Nf4 {[%clk 0:00:45]} 34. Nd4 {[%clk 0:00:04]}  Rd8 {[%clk 0:00:25]} 35. f3 {[%clk 0:00:01]} 0-1


[Site "https://www.chess.com"]

[Event "Titled Tuesday Blitz June 27 Late 2023"]
[White "Ramadoss, Ashokkumar"]
[Black "Deng, Henry"]
[WhiteFideId "5040990"]
[BlackFideId "30965454"]
[WhiteElo "2292"]
[BlackElo "2504"]
[Result "0-1"]
[Round "2"]
[TimeControl "180+2"]
[Date "2023.06.27"]
[WhiteClock "0:00:36"]
[BlackClock "0:00:55"]
[Board "151"]

1. Nf3 {[%clk 0:03:00]}  d5 {[%clk 0:02:59]} 2. c4 {[%clk 0:03:01]}  c6 {[%clk 0:02:59]} 3. Qc2 {[%clk 0:03:00]}  Nf6 {[%clk 0:02:59]} 4. d4 {[%clk 0:03:00]}  dxc4 {[%clk 0:02:58]} 5. Qxc4 {[%clk 0:02:59]}  Nbd7 {[%clk 0:02:59]} 6. Nc3 {[%clk 0:02:59]}  Qc7 {[%clk 0:02:58]} 7. e4 {[%clk 0:02:41]}  e5 {[%clk 0:02:58]} 8. Ng5 {[%clk 0:02:41]}  Nb6 {[%clk 0:02:56]} 9. Qd3 {[%clk 0:02:35]}  exd4 {[%clk 0:02:50]} 10. Qxd4 {[%clk 0:02:35]}  Bd6 {[%clk 0:02:48]} 11. a4 {[%clk 0:02:11]}  Nbd7 {[%clk 0:02:33]} 12. Bc4 {[%clk 0:01:55]}  O-O {[%clk 0:02:23]} 13. Nf3 {[%clk 0:01:43]}  Ne5 {[%clk 0:02:19]} 14. Nxe5 {[%clk 0:01:43]}  Bxe5 {[%clk 0:02:19]} 15. Qe3 {[%clk 0:01:44]}  Re8 {[%clk 0:02:16]} 16. f3 {[%clk 0:01:33]}  Bxh2 {[%clk 0:01:43]} 17. Bd2 {[%clk 0:01:32]}  Bg3+ {[%clk 0:01:43]} 18. Kf1 {[%clk 0:01:33]}  Be6 {[%clk 0:01:40]} 19. Bxe6 {[%clk 0:01:31]}  Rxe6 {[%clk 0:01:39]} 20. Qg5 {[%clk 0:01:29]}  Be5 {[%clk 0:01:38]} 21. Qh4 {[%clk 0:01:18]}  Qd6 {[%clk 0:01:18]} 22. Bg5 {[%clk 0:01:09]}  h6 {[%clk 0:01:11]} 23. Bxh6 {[%clk 0:01:06]}  gxh6 {[%clk 0:01:05]} 24. Qxh6 {[%clk 0:01:05]}  Qd3+ {[%clk 0:00:57]} 25. Kf2 {[%clk 0:00:47]}  Bd4+ {[%clk 0:00:56]} 26. Kg3 {[%clk 0:00:46]}  Nxe4+ {[%clk 0:00:54]} 27. Nxe4 {[%clk 0:00:42]}  Rxh6 {[%clk 0:00:55]} 28. Rxh6 {[%clk 0:00:36]}  Be5+ {[%clk 0:00:55]} 0-1


[Site "https://www.chess.com"]